[Event "Titled Tuesday Blitz March 15 Early 2022"]
[White "Tanenbaum, Zachary"]
[Black "Narayanan.S.L"]
[WhiteFideId "2060850"]
[BlackFideId "5058422"]
[WhiteElo "2168"]
[BlackElo "2494"]
[Result "0-1"]
[Round "04"]
[TimeControl "180+1"]
[Date "2022.03.15"]
[WhiteClock "0:00:03"]
[BlackClock "0:01:01"]

1. e4 {[%clk 0:03:00]}  e6 {[%clk 0:02:58]} 2. d4 {[%clk 0:03:00]}  d5 {[%clk 0:02:59]} 3. Nc3 {[%clk 0:03:01]}  Bb4 {[%clk 0:02:59]} 4. exd5 {[%clk 0:03:01]}  exd5 {[%clk 0:02:59]} 5. Bd3 {[%clk 0:03:01]}  Nc6 {[%clk 0:02:59]} 6. a3 {[%clk 0:03:01]}  Ba5 {[%clk 0:02:59]} 7. Nf3 {[%clk 0:03:00]}  Bg4 {[%clk 0:02:58]} 8. h3 {[%clk 0:02:56]}  Bh5 {[%clk 0:02:58]} 9. O-O {[%clk 0:02:55]}  Nge7 {[%clk 0:02:57]} 10. Re1 {[%clk 0:02:51]}  Bxc3 {[%clk 0:02:55]} 11. bxc3 {[%clk 0:02:51]}  Bg6 {[%clk 0:02:55]} 12. Rb1 {[%clk 0:02:49]}  b6 {[%clk 0:02:53]} 13. c4 {[%clk 0:01:56]}  O-O {[%clk 0:02:52]} 14. Bf4 {[%clk 0:01:54]}  dxc4 {[%clk 0:02:47]} 15. Bxc4 {[%clk 0:01:54]}  Nd5 {[%clk 0:02:48]} 16. Bg5 {[%clk 0:01:45]}  f6 {[%clk 0:02:44]} 17. Bh4 {[%clk 0:01:40]}  Bf7 {[%clk 0:02:44]} 18. Qd2 {[%clk 0:01:39]}  Nde7 {[%clk 0:02:39]} 19. Bxf7+ {[%clk 0:01:30]}  Rxf7 {[%clk 0:02:39]} 20. c4 {[%clk 0:01:31]}  Nf5 {[%clk 0:02:39]} 21. d5 {[%clk 0:01:30]}  Nxh4 {[%clk 0:02:38]} 22. Nxh4 {[%clk 0:01:31]}  Ne5 {[%clk 0:02:38]} 23. Qc3 {[%clk 0:01:26]}  Qd7 {[%clk 0:02:37]} 24. f4 {[%clk 0:01:08]}  Ng6 {[%clk 0:02:37]} 25. Nxg6 {[%clk 0:01:07]}  hxg6 {[%clk 0:02:37]} 26. Re6 {[%clk 0:01:05]}  Re7 {[%clk 0:02:37]} 27. Rbe1 {[%clk 0:01:05]}  Rxe6 {[%clk 0:02:37]} 28. dxe6 {[%clk 0:00:16]}  Qe7 {[%clk 0:02:36]} 29. Qd3 {[%clk 0:00:12]}  f5 {[%clk 0:02:33]} 30. Qg3 {[%clk 0:00:11]}  Qf6 {[%clk 0:02:30]} 31. Qf3 {[%clk 0:00:09]}  Re8 {[%clk 0:02:30]} 32. Qd5 {[%clk 0:00:09]}  Qe7 {[%clk 0:02:30]} 33. Re3 {[%clk 0:00:08]}  Rd8 {[%clk 0:02:29]} 34. Qe5 {[%clk 0:00:07]}  Qd6 {[%clk 0:02:17]} 35. e7 {[%clk 0:00:06]}  Re8 {[%clk 0:02:18]} 36. Qxd6 {[%clk 0:00:06]}  cxd6 {[%clk 0:02:18]} 37. Re6 {[%clk 0:00:06]}  Kf7 {[%clk 0:02:19]} 38. Rxd6 {[%clk 0:00:07]}  Rxe7 {[%clk 0:02:19]} 39. Rd4 {[%clk 0:00:06]}  Ke6 {[%clk 0:02:07]} 40. Kf2 {[%clk 0:00:06]}  Rc7 {[%clk 0:02:08]} 41. Ke3 {[%clk 0:00:06]}  Rc5 {[%clk 0:02:09]} 42. g3 {[%clk 0:00:06]}  Ra5 {[%clk 0:02:08]} 43. Rd3 {[%clk 0:00:07]}  Ra4 {[%clk 0:02:09]} 44. Kd4 {[%clk 0:00:07]}  b5 {[%clk 0:02:08]} 45. Re3+ {[%clk 0:00:05]}  Kf7 {[%clk 0:02:08]} 46. Rc3 {[%clk 0:00:04]}  bxc4 {[%clk 0:02:07]} 47. Rxc4 {[%clk 0:00:05]}  Rxa3 {[%clk 0:02:07]} 48. g4 {[%clk 0:00:05]}  a5 {[%clk 0:01:59]} 49. Rc7+ {[%clk 0:00:04]}  Kg8 {[%clk 0:01:59]} 50. gxf5 {[%clk 0:00:04]}  gxf5 {[%clk 0:02:00]} 51. Ke5 {[%clk 0:00:05]}  Rxh3 {[%clk 0:01:58]} 52. Kxf5 {[%clk 0:00:05]}  a4 {[%clk 0:01:57]} 53. Ra7 {[%clk 0:00:05]}  a3 {[%clk 0:01:58]} 54. Kg6 {[%clk 0:00:05]}  Rg3+ {[%clk 0:01:58]} 55. Kf5 {[%clk 0:00:06]}  Kh7 {[%clk 0:01:56]} 56. Ra6 {[%clk 0:00:05]}  g6+ {[%clk 0:01:55]} 57. Kf6 {[%clk 0:00:04]}  Kh6 {[%clk 0:01:52]} 58. Ra8 {[%clk 0:00:05]}  Kh5 {[%clk 0:01:52]} 59. Ra5+ {[%clk 0:00:05]}  Kg4 {[%clk 0:01:52]} 60. Ra4 {[%clk 0:00:05]}  Kh5 {[%clk 0:01:44]} 61. Ra5+ {[%clk 0:00:05]}  Kg4 {[%clk 0:01:16]} 62. Ra4 {[%clk 0:00:05]}  Kh3 {[%clk 0:01:17]} 63. f5 {[%clk 0:00:05]}  gxf5 {[%clk 0:01:12]} 64. Kxf5 {[%clk 0:00:06]}  Kg2 {[%clk 0:01:11]} 65. Kf4 {[%clk 0:00:06]}  Kf2 {[%clk 0:01:11]} 66. Ra5 {[%clk 0:00:04]}  Rh3 {[%clk 0:01:07]} 67. Ke4 {[%clk 0:00:05]}  Ke2 {[%clk 0:01:08]} 68. Kd4 {[%clk 0:00:05]}  Kd2 {[%clk 0:01:08]} 69. Kc4 {[%clk 0:00:04]}  Kc2 {[%clk 0:01:09]} 70. Kb4 {[%clk 0:00:04]}  Kb2 {[%clk 0:01:10]} 71. Rg5 {[%clk 0:00:03]}  Rh4+ {[%clk 0:01:09]} 72. Kb5 {[%clk 0:00:04]}  Rd4 {[%clk 0:01:02]} 73. Rg2+ {[%clk 0:00:03]}  Kc3 {[%clk 0:01:01]} 74. Ra2 {[%clk 0:00:03]}  Kb3 {[%clk 0:01:01]} 75. Rg2 {[%clk 0:00:03]}  a2 {[%clk 0:01:01]} 76. Rg3+ {[%clk 0:00:03]}  Kc2 {[%clk 0:01:01]} 77. Rg1 {[%clk 0:00:03]}  Rd1 {[%clk 0:01:01]} 78. Rg2+ {[%clk 0:00:03]}  Rd2 {[%clk 0:01:00]} 79. Rg1 {[%clk 0:00:04]}  Kb2 {[%clk 0:01:01]} 80. Kb4 {[%clk 0:00:03]}  a1=Q {[%clk 0:01:01]} 0-1


[Site "https://www.chess.com"]

[Event "Titled Tuesday Blitz March 15 Early 2022"]
[White "Tari, Aryan"]
[Black "Prohorov, Olexandr"]
[WhiteFideId "1510045"]
[BlackFideId "14105578"]
[WhiteElo "2567"]
[BlackElo "1993"]
[Result "1-0"]
[Round "04"]
[TimeControl "180+1"]
[Date "2022.03.15"]
[WhiteClock "0:00:43"]
[BlackClock "0:00:04"]

1. b3 {[%clk 0:02:59]}  a5 {[%clk 0:02:58]} 2. Nf3 {[%clk 0:02:56]}  a4 {[%clk 0:02:58]} 3. Bb2 {[%clk 0:02:56]}  Nc6 {[%clk 0:02:53]} 4. c4 {[%clk 0:02:50]}  e6 {[%clk 0:02:42]} 5. bxa4 {[%clk 0:02:39]}  Nf6 {[%clk 0:02:34]} 6. e3 {[%clk 0:02:35]}  d5 {[%clk 0:02:28]} 7. cxd5 {[%clk 0:02:35]}  exd5 {[%clk 0:02:27]} 8. Bb5 {[%clk 0:02:35]}  Bd6 {[%clk 0:02:22]} 9. O-O {[%clk 0:02:31]}  O-O {[%clk 0:02:22]} 10. h3 {[%clk 0:02:30]}  Bf5 {[%clk 0:02:07]} 11. Nc3 {[%clk 0:02:23]}  Na5 {[%clk 0:02:05]} 12. d4 {[%clk 0:02:17]}  c6 {[%clk 0:01:58]} 13. Be2 {[%clk 0:02:14]}  Re8 {[%clk 0:01:56]} 14. Nd2 {[%clk 0:02:09]}  Qd7 {[%clk 0:01:49]} 15. Bf3 {[%clk 0:02:07]}  h6 {[%clk 0:01:35]} 16. Re1 {[%clk 0:02:04]}  g5 {[%clk 0:01:32]} 17. e4 {[%clk 0:02:03]}  dxe4 {[%clk 0:01:25]} 18. Ndxe4 {[%clk 0:02:04]}  Nxe4 {[%clk 0:01:17]} 19. Nxe4 {[%clk 0:02:05]}  Bxe4 {[%clk 0:01:04]} 20. Bxe4 {[%clk 0:02:06]}  Nc4 {[%clk 0:01:01]} 21. Bc3 {[%clk 0:02:03]}  Nb6 {[%clk 0:00:55]} 22. Qh5 {[%clk 0:01:31]}  Bf8 {[%clk 0:00:42]} 23. Rad1 {[%clk 0:01:26]}  Nd5 {[%clk 0:00:37]} 24. Ba1 {[%clk 0:01:18]}  Bg7 {[%clk 0:00:37]} 25. Qf3 {[%clk 0:01:17]}  Rad8 {[%clk 0:00:33]} 26. a5 {[%clk 0:01:15]}  Rf8 {[%clk 0:00:27]} 27. Bf5 {[%clk 0:01:13]}  Qc7 {[%clk 0:00:23]} 28. h4 {[%clk 0:01:13]}  Qf4 {[%clk 0:00:21]} 29. Qxf4 {[%clk 0:01:06]}  gxf4 {[%clk 0:00:21]} 30. Rb1 {[%clk 0:01:04]}  Rfe8 {[%clk 0:00:14]} 31. Rxe8+ {[%clk 0:01:02]}  Rxe8 {[%clk 0:00:14]} 32. Kf1 {[%clk 0:01:02]}  Ra8 {[%clk 0:00:13]} 33. Rxb7 {[%clk 0:00:58]}  Rxa5 {[%clk 0:00:13]} 34. Bb1 {[%clk 0:00:55]}  Bf6 {[%clk 0:00:10]} 35. h5 {[%clk 0:00:55]}  Kg7 {[%clk 0:00:05]} 36. Ke2 {[%clk 0:00:54]}  Ra4 {[%clk 0:00:03]} 37. Kf3 {[%clk 0:00:53]}  Bxd4 {[%clk 0:00:02]} 38. Bxd4+ {[%clk 0:00:54]}  Rxd4 {[%clk 0:00:02]} 39. Bg6 {[%clk 0:00:55]}  Kf6 {[%clk 0:00:01]} 40. Rxf7+ {[%clk 0:00:55]}  Ke6 {[%clk 0:00:02]} 41. Rh7 {[%clk 0:00:52]}  Rd2 {[%clk 0:00:01]} 42. Bf7+ {[%clk 0:00:51]}  Kd6 {[%clk 0:00:01]} 43. Rxh6+ {[%clk 0:00:50]}  Kc5 {[%clk 0:00:01]} 44. Bxd5 {[%clk 0:00:50]}  cxd5 {[%clk 0:00:02]} 45. Rf6 {[%clk 0:00:49]}  Rxa2 {[%clk 0:00:03]} 46. h6 {[%clk 0:00:50]}  Ra7 {[%clk 0:00:02]} 47. Kxf4 {[%clk 0:00:50]}  Rh7 {[%clk 0:00:03]} 48. g4 {[%clk 0:00:50]}  d4 {[%clk 0:00:03]} 49. g5 {[%clk 0:00:51]}  Kc4 {[%clk 0:00:03]} 50. Rc6+ {[%clk 0:00:43]}  Kd5 {[%clk 0:00:03]} 51. Rc8 {[%clk 0:00:43]}  d3 {[%clk 0:00:03]} 52. Rd8+ {[%clk 0:00:44]}  Kc5 {[%clk 0:00:04]} 53. Rxd3 {[%clk 0:00:43]} 1-0


[Site "https://www.chess.com"]

[Event "Titled Tuesday Blitz March 15 Early 2022"]
[White "Thavandiran, Shiyam"]
[Black "Riehle, Marco"]
[WhiteFideId "2605058"]
[BlackFideId "12904392"]
[WhiteElo "2357"]
[BlackElo "2462"]
[Result "0-1"]
[Round "04"]
[TimeControl "180+1"]
[Date "2022.03.15"]
[WhiteClock "0:00:01"]
[BlackClock "0:00:44"]

1. e4 {[%clk 0:01:53]}  e5 {[%clk 0:02:56]} 2. Bc4 {[%clk 0:01:52]}  Nf6 {[%clk 0:02:56]} 3. d3 {[%clk 0:01:53]}  Nc6 {[%clk 0:02:56]} 4. Nc3 {[%clk 0:01:52]}  Bc5 {[%clk 0:02:56]} 5. Bg5 {[%clk 0:01:51]}  h6 {[%clk 0:02:54]} 6. Bh4 {[%clk 0:01:52]}  d6 {[%clk 0:02:54]} 7. Nge2 {[%clk 0:01:52]}  Be6 {[%clk 0:02:53]} 8. a3 {[%clk 0:01:50]}  g5 {[%clk 0:02:49]} 9. Bg3 {[%clk 0:01:50]}  Qd7 {[%clk 0:02:48]} 10. h4 {[%clk 0:01:50]}  O-O-O {[%clk 0:02:47]} 11. Qd2 {[%clk 0:01:49]}  g4 {[%clk 0:02:40]} 12. h5 {[%clk 0:01:49]}  d5 {[%clk 0:02:26]} 13. Bb5 {[%clk 0:01:32]}  d4 {[%clk 0:02:14]} 14. Nd1 {[%clk 0:00:49]}  Qd6 {[%clk 0:02:09]} 15. Bxc6 {[%clk 0:00:46]}  bxc6 {[%clk 0:02:09]} 16. b4 {[%clk 0:00:44]}  Bb6 {[%clk 0:02:08]} 17. Bh4 {[%clk 0:00:44]}  Bd7 {[%clk 0:02:04]} 18. Nb2 {[%clk 0:00:44]}  Rde8 {[%clk 0:01:58]} 19. Nc4 {[%clk 0:00:44]}  Qe6 {[%clk 0:01:58]} 20. Ng3 {[%clk 0:00:44]}  Nh7 {[%clk 0:01:40]} 21. a4 {[%clk 0:00:42]}  a6 {[%clk 0:01:39]} 22. Nf5 {[%clk 0:00:29]}  Rhg8 {[%clk 0:01:14]} 23. Nxh6 {[%clk 0:00:20]}  Rgf8 {[%clk 0:01:09]} 24. Nf5 {[%clk 0:00:20]}  Rg8 {[%clk 0:01:09]} 25. Ra3 {[%clk 0:00:16]}  f6 {[%clk 0:01:04]} 26. Bg3 {[%clk 0:00:11]}  Ng5 {[%clk 0:00:57]} 27. h6 {[%clk 0:00:12]}  Nxe4 {[%clk 0:00:56]} 28. dxe4 {[%clk 0:00:09]}  Qxc4 {[%clk 0:00:56]} 29. h7 {[%clk 0:00:10]}  Rh8 {[%clk 0:00:55]} 30. Rh6 {[%clk 0:00:06]}  Bxf5 {[%clk 0:00:52]} 31. exf5 {[%clk 0:00:07]}  e4 {[%clk 0:00:52]} 32. Rxf6 {[%clk 0:00:05]}  Rxh7 {[%clk 0:00:49]} 33. Qe2 {[%clk 0:00:01]}  Qxb4+ {[%clk 0:00:44]} 34. Kd1 {[%clk 0:00:01]} 0-1


[Site "https://www.chess.com"]

[Event "Titled Tuesday Blitz March 15 Early 2022"]
[White "Tsatsalashvili, Keti"]
[Black "Goryachkina, Aleksandra"]
[WhiteFideId "13603434"]
[BlackFideId "4147103"]
[WhiteElo "2246"]
[BlackElo "2426"]
[Result "0-1"]
[Round "04"]
[TimeControl "180+1"]
[Date "2022.03.15"]
[WhiteClock "0:00:11"]
[BlackClock "0:00:25"]

1. d4 {[%clk 0:03:00]}  Nf6 {[%clk 0:02:57]} 2. Nf3 {[%clk 0:02:59]}  d5 {[%clk 0:02:57]} 3. c4 {[%clk 0:02:58]}  e6 {[%clk 0:02:56]} 4. cxd5 {[%clk 0:02:54]}  exd5 {[%clk 0:02:56]} 5. Nc3 {[%clk 0:02:54]}  c6 {[%clk 0:02:55]} 6. Bg5 {[%clk 0:02:51]}  h6 {[%clk 0:02:49]} 7. Bh4 {[%clk 0:02:49]}  Be7 {[%clk 0:02:46]} 8. e3 {[%clk 0:02:48]}  Bf5 {[%clk 0:02:45]} 9. Bd3 {[%clk 0:02:47]}  Bxd3 {[%clk 0:02:45]} 10. Qxd3 {[%clk 0:02:48]}  Nbd7 {[%clk 0:02:44]} 11. O-O {[%clk 0:02:47]}  O-O {[%clk 0:02:44]} 12. Rab1 {[%clk 0:02:45]}  a5 {[%clk 0:02:42]} 13. Nd2 {[%clk 0:02:31]}  Re8 {[%clk 0:02:39]} 14. f3 {[%clk 0:02:28]}  Nf8 {[%clk 0:02:31]} 15. Bf2 {[%clk 0:02:10]}  Ng6 {[%clk 0:02:24]} 16. Rbd1 {[%clk 0:02:04]}  Qd7 {[%clk 0:02:19]} 17. Na4 {[%clk 0:02:04]}  Rad8 {[%clk 0:02:17]} 18. Nb3 {[%clk 0:01:57]}  Bd6 {[%clk 0:02:11]} 19. g3 {[%clk 0:01:48]}  Qh3 {[%clk 0:02:02]} 20. Nxa5 {[%clk 0:01:26]}  Re7 {[%clk 0:01:52]} 21. Rfe1 {[%clk 0:01:25]}  Bb4 {[%clk 0:01:46]} 22. Nb3 {[%clk 0:01:20]}  Bxe1 {[%clk 0:01:45]} 23. Rxe1 {[%clk 0:01:21]}  h5 {[%clk 0:01:43]} 24. Qf1 {[%clk 0:01:20]}  Qf5 {[%clk 0:01:36]} 25. Kg2 {[%clk 0:01:07]}  Nh7 {[%clk 0:01:31]} 26. Nac5 {[%clk 0:01:06]}  Ng5 {[%clk 0:01:28]} 27. Bg1 {[%clk 0:01:05]}  Rde8 {[%clk 0:01:13]} 28. Nd3 {[%clk 0:01:01]}  Nxf3 {[%clk 0:01:05]} 29. Rd1 {[%clk 0:00:54]}  Ngh4+ {[%clk 0:00:27]} 30. gxh4 {[%clk 0:00:49]}  Nxh4+ {[%clk 0:00:27]} 31. Kg3 {[%clk 0:00:37]}  Qg4+ {[%clk 0:00:27]} 32. Kf2 {[%clk 0:00:38]}  Rxe3 {[%clk 0:00:26]} 33. Ne5 {[%clk 0:00:15]}  Qf4+ {[%clk 0:00:25]} 34. Nf3 {[%clk 0:00:11]}  Qxf3# {[%clk 0:00:25]} 0-1


[Site "https://www.chess.com"]

[Event "Titled Tuesday Blitz March 15 Early 2022"]
[White "Van den Dikkenberg, Erik"]
[Black "Winkels, Marcel"]
[WhiteFideId "1005880"]
[BlackFideId "1003887"]
[WhiteElo "2118"]
[BlackElo "1900"]
[Result "1/2-1/2"]
[Round "04"]
[TimeControl "180+1"]
[Date "2022.03.15"]
[WhiteClock "0:00:25"]
[BlackClock "0:00:20"]

1. e4 {[%clk 0:03:00]}  c5 {[%clk 0:02:59]} 2. Nc3 {[%clk 0:03:00]}  d6 {[%clk 0:02:58]} 3. f4 {[%clk 0:03:00]}  g6 {[%clk 0:02:58]} 4. Nf3 {[%clk 0:03:01]}  Bg7 {[%clk 0:02:58]} 5. Bc4 {[%clk 0:03:01]}  Nc6 {[%clk 0:02:58]} 6. O-O {[%clk 0:03:01]}  e6 {[%clk 0:02:58]} 7. d3 {[%clk 0:03:02]}  Nge7 {[%clk 0:02:56]} 8. Qe1 {[%clk 0:03:02]}  O-O {[%clk 0:02:53]} 9. Kh1 {[%clk 0:03:02]}  Nd4 {[%clk 0:02:51]} 10. Nxd4 {[%clk 0:03:02]}  cxd4 {[%clk 0:02:50]} 11. Ne2 {[%clk 0:03:02]}  d5 {[%clk 0:02:51]} 12. Bb3 {[%clk 0:03:02]}  dxe4 {[%clk 0:02:50]} 13. dxe4 {[%clk 0:03:02]}  b6 {[%clk 0:02:44]} 14. Bd2 {[%clk 0:03:01]}  Ba6 {[%clk 0:02:43]} 15. Rf3 {[%clk 0:03:00]}  d3 {[%clk 0:02:33]} 16. cxd3 {[%clk 0:02:59]}  Bxd3 {[%clk 0:02:32]} 17. Bc3 {[%clk 0:02:49]}  Bxe4 {[%clk 0:02:23]} 18. Bxg7 {[%clk 0:02:43]}  Kxg7 {[%clk 0:02:23]} 19. Qc3+ {[%clk 0:02:31]}  Kg8 {[%clk 0:02:19]} 20. Rh3 {[%clk 0:02:29]}  Bf5 {[%clk 0:02:15]} 21. Re3 {[%clk 0:02:18]}  Nd5 {[%clk 0:02:13]} 22. Bxd5 {[%clk 0:02:18]}  Qxd5 {[%clk 0:02:12]} 23. Ng3 {[%clk 0:02:12]}  Rac8 {[%clk 0:02:10]} 24. Qf6 {[%clk 0:02:10]}  Rfd8 {[%clk 0:02:06]} 25. h3 {[%clk 0:01:56]}  Bxh3 {[%clk 0:01:58]} 26. Ne4 {[%clk 0:01:44]}  Bf5 {[%clk 0:01:37]} 27. Ng5 {[%clk 0:01:33]}  Rd7 {[%clk 0:01:23]} 28. Rae1 {[%clk 0:01:30]}  h6 {[%clk 0:01:08]} 29. Nf3 {[%clk 0:01:27]}  Rc2 {[%clk 0:01:02]} 30. Qh4 {[%clk 0:01:25]}  Kg7 {[%clk 0:00:59]} 31. Kh2 {[%clk 0:01:14]}  Qb7 {[%clk 0:00:55]} 32. R1e2 {[%clk 0:01:03]}  Rxe2 {[%clk 0:00:54]} 33. Rxe2 {[%clk 0:01:03]}  Bd3 {[%clk 0:00:48]} 34. Rd2 {[%clk 0:00:48]}  Be4 {[%clk 0:00:47]} 35. Rxd7 {[%clk 0:00:41]}  Qxd7 {[%clk 0:00:46]} 36. Ne5 {[%clk 0:00:41]}  Qd2 {[%clk 0:00:42]} 37. Qg3 {[%clk 0:00:37]}  Qxb2 {[%clk 0:00:37]} 38. Ng4 {[%clk 0:00:35]}  Qxa2 {[%clk 0:00:30]} 39. Qc3+ {[%clk 0:00:35]}  Kf8 {[%clk 0:00:25]} 40. Qh8+ {[%clk 0:00:32]}  Ke7 {[%clk 0:00:24]} 41. Qf6+ {[%clk 0:00:31]}  Ke8 {[%clk 0:00:24]} 42. Qh8+ {[%clk 0:00:26]}  Ke7 {[%clk 0:00:20]} 43. Qf6+ {[%clk 0:00:26]}  Ke8 {[%clk 0:00:20]} 44. Qh8+ {[%clk 0:00:25]}  Ke7 {[%clk 0:00:20]} 1/2-1/2


[Site "https://www.chess.com"]

[Event "Titled Tuesday Blitz March 15 Early 2022"]
[White "Vlassov, Nikolai"]
[Black "Beerdsen, Thomas"]
[WhiteFideId "4103360"]
[BlackFideId "1030108"]
[WhiteElo "2407"]
[BlackElo "2585"]
[Result "0-1"]
[Round "04"]
[TimeControl "180+1"]
[Date "2022.03.15"]
[WhiteClock "0:00:46"]
[BlackClock "0:01:35"]

1. e4 {[%clk 0:03:00]}  e5 {[%clk 0:02:59]} 2. Bc4 {[%clk 0:03:00]}  Nf6 {[%clk 0:02:58]} 3. d3 {[%clk 0:03:00]}  c6 {[%clk 0:02:59]} 4. Nf3 {[%clk 0:03:00]}  d5 {[%clk 0:02:59]} 5. Bb3 {[%clk 0:03:00]}  a5 {[%clk 0:03:00]} 6. Nc3 {[%clk 0:02:59]}  Bb4 {[%clk 0:02:59]} 7. a3 {[%clk 0:02:59]}  Bxc3+ {[%clk 0:02:59]} 8. bxc3 {[%clk 0:03:00]}  a4 {[%clk 0:02:58]} 9. Ba2 {[%clk 0:03:00]}  O-O {[%clk 0:02:55]} 10. Nxe5 {[%clk 0:02:53]}  dxe4 {[%clk 0:02:51]} 11. O-O {[%clk 0:02:52]}  Qe7 {[%clk 0:02:41]} 12. d4 {[%clk 0:02:46]}  Be6 {[%clk 0:02:38]} 13. c4 {[%clk 0:02:42]}  Nbd7 {[%clk 0:02:22]} 14. Bg5 {[%clk 0:02:41]}  h6 {[%clk 0:02:21]} 15. Bh4 {[%clk 0:02:41]}  Rfd8 {[%clk 0:02:13]} 16. Qe2 {[%clk 0:02:36]}  Ra5 {[%clk 0:01:49]} 17. f4 {[%clk 0:02:21]}  exf3 {[%clk 0:01:45]} 18. Rxf3 {[%clk 0:02:20]}  Nxe5 {[%clk 0:01:44]} 19. dxe5 {[%clk 0:02:19]}  Qc5+ {[%clk 0:01:44]} 20. Bf2 {[%clk 0:02:19]}  Qxe5 {[%clk 0:01:44]} 21. Qxe5 {[%clk 0:02:07]}  Rxe5 {[%clk 0:01:45]} 22. Rb1 {[%clk 0:02:01]}  Rd2 {[%clk 0:01:42]} 23. Rc1 {[%clk 0:01:37]}  Ree2 {[%clk 0:01:39]} 24. Bg3 {[%clk 0:00:46]}  Rxg2+ {[%clk 0:01:35]} 25. Kf1 {[%clk 0:00:46]}  Bh3 {[%clk 0:01:35]} 0-1


[Site "https://www.chess.com"]

[Event "Titled Tuesday Blitz March 15 Early 2022"]
[White "Vokarev, Sergey"]
[Black "Koellner, Ruben Gideon"]
[WhiteFideId "4119711"]
[BlackFideId "12993093"]
[WhiteElo "2398"]
[BlackElo "2426"]
[Result "0-1"]
[Round "04"]
[TimeControl "180+1"]
[Date "2022.03.15"]
[WhiteClock "0:00:02"]
[BlackClock "0:00:16"]

1. e4 {[%clk 0:03:00]}  d6 {[%clk 0:03:00]} 2. d4 {[%clk 0:03:00]}  Nf6 {[%clk 0:03:00]} 3. Nc3 {[%clk 0:02:59]}  e5 {[%clk 0:03:01]} 4. dxe5 {[%clk 0:02:47]}  dxe5 {[%clk 0:03:01]} 5. Qxd8+ {[%clk 0:02:47]}  Kxd8 {[%clk 0:03:02]} 6. Bc4 {[%clk 0:02:47]}  Be6 {[%clk 0:03:02]} 7. Bxe6 {[%clk 0:02:46]}  fxe6 {[%clk 0:03:03]} 8. f3 {[%clk 0:02:46]}  Bd6 {[%clk 0:03:04]} 9. Nh3 {[%clk 0:02:45]}  Ke7 {[%clk 0:03:05]} 10. Nf2 {[%clk 0:02:45]}  a6 {[%clk 0:03:06]} 11. Be3 {[%clk 0:02:43]}  Nbd7 {[%clk 0:03:06]} 12. O-O-O {[%clk 0:02:42]}  b5 {[%clk 0:03:06]} 13. Kb1 {[%clk 0:02:39]}  Rhb8 {[%clk 0:03:06]} 14. Nd3 {[%clk 0:02:33]}  c5 {[%clk 0:03:06]} 15. b3 {[%clk 0:02:23]}  c4 {[%clk 0:03:01]} 16. Nc1 {[%clk 0:02:17]}  Bc5 {[%clk 0:02:58]} 17. Rhe1 {[%clk 0:02:12]}  a5 {[%clk 0:02:45]} 18. Re2 {[%clk 0:02:10]}  Bxe3 {[%clk 0:02:20]} 19. Rxe3 {[%clk 0:02:09]}  Nc5 {[%clk 0:02:21]} 20. N3e2 {[%clk 0:01:44]}  Nfd7 {[%clk 0:02:08]} 21. Kb2 {[%clk 0:01:41]}  b4 {[%clk 0:02:03]} 22. bxc4 {[%clk 0:01:33]}  Nb6 {[%clk 0:01:56]} 23. Rb3 {[%clk 0:00:58]}  Nxc4+ {[%clk 0:01:53]} 24. Kb1 {[%clk 0:00:58]}  Nxb3 {[%clk 0:01:28]} 25. axb3 {[%clk 0:00:57]}  Ne3 {[%clk 0:01:24]} 26. Rd2 {[%clk 0:00:33]}  Rd8 {[%clk 0:01:20]} 27. Nd3 {[%clk 0:00:32]}  Nxg2 {[%clk 0:01:04]} 28. Kc1 {[%clk 0:00:31]}  Kf6 {[%clk 0:00:57]} 29. Rd1 {[%clk 0:00:21]}  Rac8 {[%clk 0:00:51]} 30. Rg1 {[%clk 0:00:20]}  Rxd3 {[%clk 0:00:35]} 31. Rxg2 {[%clk 0:00:21]}  Rxf3 {[%clk 0:00:36]} 32. Kd2 {[%clk 0:00:15]}  Rd8+ {[%clk 0:00:34]} 33. Ke1 {[%clk 0:00:14]}  g6 {[%clk 0:00:32]} 34. Ng3 {[%clk 0:00:12]}  h5 {[%clk 0:00:30]} 35. Nf1 {[%clk 0:00:11]}  Rd4 {[%clk 0:00:28]} 36. Nd2 {[%clk 0:00:11]}  Rf4 {[%clk 0:00:25]} 37. Ke2 {[%clk 0:00:10]}  g5 {[%clk 0:00:22]} 38. Ke3 {[%clk 0:00:10]}  g4 {[%clk 0:00:22]} 39. Rg1 {[%clk 0:00:08]}  Rxd2 {[%clk 0:00:17]} 40. Kxd2 {[%clk 0:00:08]}  Rf2+ {[%clk 0:00:17]} 41. Kd3 {[%clk 0:00:07]}  Rxh2 {[%clk 0:00:17]} 42. Ra1 {[%clk 0:00:06]}  g3 {[%clk 0:00:18]} 43. Ke3 {[%clk 0:00:06]}  Rxc2 {[%clk 0:00:15]} 44. Rxa5 {[%clk 0:00:05]}  Rc3+ {[%clk 0:00:15]} 45. Ke2 {[%clk 0:00:04]}  h4 {[%clk 0:00:16]} 46. Ra8 {[%clk 0:00:02]}  Kg5 {[%clk 0:00:16]} 0-1


[Site "https://www.chess.com"]